Cogmind - Beta 16 @@@ ROGUE MODE // 2025.11.21 @ 18:35:44 Player: NitroKuite Result: Destroyed by D-53 Grenadier with Mini Grenade Launcher Performance ------------- Evolutions (0) 0 Regions Visited (2) 400 Robots Destroyed (2) 10 Value Destroyed (17) 17 Prototype IDs (2) 40 Alien Tech Used (0) 0 Bonus (0) 0 TOTAL SCORE: 467 Bonus ------- None Cogmind --------- Core Integrity 0/250 Matter 254/300 Energy 101/125 System Corruption 0% Temperature Cool (16) Movement Core (750) Ox14 Location -10/Mines Parts ------- > --- POWER (1) -------- Light Ion Engine > --- PROPULSION (2) --- (None) > --- UTILITY (2) ------ High-capacity Storage Unit > --- WEAPON (2) ------- (None) > --- INVENTORY (20) --- Small Storage Unit Huge Storage Unit Seismic Detector ECM Suite Medium Laser Beam Cannon Beam Cannon Beam Cannon Peak State ------------ > --- POWER ------------ Light Ion Engine > --- PROPULSION ------- Light Treads Light Treads > --- UTILITY ---------- High-capacity Storage Unit Improved Terrain Scanner > --- WEAPON ----------- Beamcaster Light Assault Rifle > --- INVENTORY -------- Light Ion Engine Small Storage Unit Huge Storage Unit Seismic Detector ECM Suite Medium Laser Beam Cannon Beam Cannon Beam Cannon [Rating: 13] Favorites ----------- Power Light Ion Engine Engine Light Ion Engine Propulsion Light Treads Treads Light Treads Utility Improved Terrain Scanner Device Improved Terrain Scanner Storage Huge Storage Unit Weapon Light Assault Rifle Energy Gun Beamcaster Ballistic Gun Light Assault Rifle Build | -11 -10 -10 ------- Run | Yrd Mat Min Slots Evolved . | . . . Power . | . . . Propulsion . | . . . Utility . | . . . Weapon . | . . . Parts Attached 11 | 7 1 3 Power 2 | 1 . 1 Engine 2 | 1 . 1 Core . | . . . Reactor . | . . . Propulsion 2 | 2 . . Treads 2 | 2 . . Leg . | . . . Wheel . | . . . Hover . | . . . Flight . | . . . Utility 4 | 2 1 1 Device 1 | 1 . . Storage 3 | 1 1 1 Processor . | . . . Hackware . | . . . Protection . | . . . Artifact . | . . . Weapon 3 | 2 . 1 Energy Gun 1 | . . 1 Energy Cannon . | . . . Ballistic Gun 2 | 2 . . Ballistic Cannon . | . . . Launcher . | . . . Special Weapon . | . . . Impact Weapon . | . . . Slashing Weapon . | . . . Piercing Weapon . | . . . Special Melee Weapon . | . . . Unidentified Prototypes . | . . . Parts Lost 7 | . . 7 Power 1 | . . 1 Propulsion 2 | . . 2 Utility 1 | . . 1 Weapon 3 | . . 3 Highest Loss Streak 7 | . . 7 To Critical Strikes . | . . . Average Backups 6 | 1 6 9 Power . | . 1 . Propulsion . | . . . Utility 2 | . 2 4 Weapon 3 | . 3 4 Tool/Special . | . . . Unused Backups 6 | . . 6 Power . | . . . Propulsion . | . . . Utility 2 | . . 2 Weapon 4 | . . 4 Tool/Special . | . . . Average Slot Usage (%) 97 | . 100 88 Engine 13 | . 14 11 Treads 27 | . 28 23 Device 13 | . 14 11 Storage 14 | . 14 14 Ballistic Gun 27 | . 28 23 Peak Build Rating 13 | 9 9 13 Average Rating 8 | 5 9 8 On Entrance 6 | . 9 9 Avg Prop Armor Cover (%) . | . . . Naked Turns . | . . . Heaviest Build 87 | 12 87 87 Greatest Support 40 | 40 40 40 Greatest Overweight (x) 14 | . 2 14 Average Overweight (x) . | . 1 2 Largest Inventory Capacity 25 | 8 25 25 Average Capacity 17 | 7 19 22 Most Carried 10 | 3 9 10 Average Carried 6 | 1 7 9 Final Capacity 25 | 8 25 20 Final Carried 9 | 3 9 8 Class Distribution -------------------- 100% | Mutant Dominant Class ---------------- Mutant | -10/Materials Mutant | -10/Mines Resources | -11 -10 -10 ----------- Run | Yrd Mat Min Matter Collected 264 | 208 . 56 Remotely . | . . . Salvage Created 92 | 12 . 80 Parts 6 | 3 . 3 Haulers Intercepted . | . . . Recyclers Shooed . | . . . Parts Field Recycled . | . . . Retrieved Matter . | . . . Parts Self-Destructed . | . . . Prevented . | . . . Parts Restored . | . . . Kills | -11 -10 -10 ------- Run | Yrd Mat Min Combat Hostiles Destroyed 5 | . . 5 Guns 5 | . . 5 Classes Destroyed 3 | 1 . 2 Tunneler 1 | 1 . . Swarmer 1 | . . 1 Assembled 4 | . . 4 Best Kill Streak 4 | 1 . 4 Combat Bots Only 4 | . . 4 Max Kills in Single Turn 1 | 1 . 1 Gunslinging . | . . . Exploded . | . . . Melee . | . . . Uniques/NPCs Destroyed . | . . . Combat | -11 -10 -10 -------- Run | Yrd Mat Min Hostile Shots Fired 53 | . . 53 Missed 14 | . . 14 Hits 39 | . . 39 Melee 10 | . . 10 Projectile 29 | . . 29 AOE 7 | . . 7 Damage Taken 898 | . . 898 Core 262 | . . 262 Absorbed by Shields . | . . . Core Remaining (%) 100 | 100 . . Volleys Fired 18 | 5 . 13 Largest 2 | 2 . 2 Hottest 95 | 40 . 95 Shots Fired 35 | 10 . 25 Gun 35 | 10 . 25 Cannon . | . . . Launcher . | . . . Special . | . . . Kinetic 26 | 10 . 16 Thermal 9 | . . 9 Explosive . | . . . Electromagnetic . | . . . Robot Hit Streak 7 | 5 . 7 Robot Miss Streak 3 | 3 . 2 Penetration Max . | . . . Secondary Targets 4 | . . 4 Max Gunslinging Chain 1 | . . 1 Shots Hit Robots 21 | 6 . 15 Core Hits 11 | 2 1 8 Critical Kills . | . . . Critical Parts Destroyed . | . . . Critical Strikes . | . . . Melee Attacks . | . . . Impact . | . . . Slashing . | . . . Piercing . | . . . Sneak Attacks . | . . . Combat Hostiles . | . . . Follow-up Attacks . | . . . Damage Inflicted 270 | 63 1 206 Guns 266 | 60 . 206 Cannons . | . . . Explosions . | . . . Melee . | . . . Ramming 4 | 3 1 . Kinetic 141 | 60 . 81 Thermal 125 | . . 125 Explosive . | . . . Electromagnetic . | . . . Impact . | . . . Slashing . | . . . Piercing . | . . . Highest Corruption . | . . . Average Corruption . | . . . Corruption Purged . | . . . Corruption Blocked . | . . . Overload Shots . | . . . Overflow Damage . | . . . Projectiles . | . . . Explosions . | . . . Melee . | . . . Knockbacks . | . . . Impact . | . . . Kinetic . | . . . Secondary . | . . . Self-Inflicted Damage . | . . . Shots . | . . . Rammed 2 | 1 1 . Targets Rammed 2 | 1 1 . Kicked . | . . . Crushed . | . . . Highest Temperature 241 | . . 241 Average Temperature 127 | . . 127 Received Heat Transfer . | . . . Siege Activations . | . . . Martial Activations . | . . . Shielding Activations . | . . . Robots Disrupted . | . . . Combat Hostiles . | . . . Robots Corrupted . | . . . Combat Hostiles . | . . . Parts Fried . | . . . Impact Corruptions . | . . . Robots Melted . | . . . Combat Hostiles . | . . . Parts Melted . | . . . Heat Transferred 222 | . . 222 Parts Sabotaged . | . . . Parts Stolen . | . . . Parts Stripped . | . . . Power Chain Reactions . | . . . Alert | -11 -10 -10 ------- Run | Yrd Mat Min Maximum Alert Level . | . . . Low Security (%) 100 | 100 100 100 Level 1 . | . . . Level 2 . | . . . Level 3 . | . . . Level 4 . | . . . Level 5 . | . . . High Security . | . . . Max Security . | . . . Peak Influence 20 | 5 5 20 Initial . | . . . Average . | . . 4 Influence Increases 30 | 5 5 20 Destroy 0b10 Robot/C 20 | . . 20 Destroy 0b10 Robot/NC 5 | 5 . . Successful Hack 5 | . 5 . Influence Decreases 30 | 5 5 20 Time Decay 30 | 5 5 20 Squads Dispatched . | . . . Investigation . | . . . Extermination . | . . . Reinforcement . | . . . Assault . | . . . Garrison . | . . . Intercept . | . . . Searches Triggered . | . . . Construction Impeded . | . . . Haulers Reinforced . | . . . Active Scanning Responses . | . . . Cargo Convoy Interrupts . | . . . Stealth | -11 -10 -10 --------- Run | Yrd Mat Min Distress Signals 1 | . . 1 Communications Jammed . | . . . Distress Signals . | . . . Times Spotted 31 | . 4 27 Peak Tracking Total 16 | . 2 16 Tactical Retreats 2 | . . 2 Traps | -11 -10 -10 ------- Run | Yrd Mat Min Traps Triggered . | . . . Indirectly . | . . . Trap Hack Attempts . | . . . Triggered . | . . . Disarmed . | . . . Reprogrammed . | . . . Reused . | . . . Traps Extracted . | . . . Installed . | . . . Triggered . | . . . Machines | -11 -10 -10 ---------- Run | Yrd Mat Min Machines Disabled . | . . . Max in Single Turn . | . . . Machines Repaired . | . . . Machines Dismantled . | . . . Machines Sabotaged . | . . . Overloaded Fab Kills . | . . . Hacking | -11 -10 -10 --------- Run | Yrd Mat Min Machines Accessed 2 | . 2 . Terminals 2 | . 2 . Fabricators . | . . . Repair Stations . | . . . Recycling Units . | . . . Scanalyzers . | . . . Garrison Access . | . . . Total Hacks 7 | . 7 . Successful 5 | . 5 . Failed 2 | . 2 . Catastrophic . | . . . Database Lockouts . | . . . Manual 2 | . 2 . Terminals 7 | . 7 . Fabricators . | . . . Repair Stations . | . . . Recycling Units . | . . . Scanalyzers . | . . . Garrison Access . | . . . Terminal Hacks 5 | . 5 . Record 2 | . 2 . Prototype ID Bank 1 | . 1 . Investigation Status 1 | . 1 . Hauler Manifests 1 | . 1 . Fabricator Hacks . | . . . Repair Station Hacks . | . . . Recycling Unit Hacks . | . . . Scanalyzer . | . . . Garrison Access Hacks . | . . . Unauthorized Hacks . | . . . Terminals . | . . . Fabricators . | . . . Repair Stations . | . . . Recycling Units . | . . . Scanalyzers . | . . . Garrison Access . | . . . Data Cores Recovered . | . . . Used . | . . . Hacking Detections 2 | . 2 . Full Trace Events . | . . . Feedback Events . | . . . Feedback Blocked . | . . . Robot Schematics Acquired . | . . . Robots Built . | . . . Authchips . | . . . Time . | . . . Total Robot Build Rating . | . . . Part Schematics Acquired . | . . . Parts Built . | . . . Authchips . | . . . Time . | . . . Total Part Build Rating . | . . . Part Studies Acquired . | . . . Parts Repaired . | . . . Time . | . . . Parts Recycled . | . . . Recycled Matter . | . . . Retrieved Matter . | . . . Retrieved Components . | . . . Parts Scanalyzed . | . . . Part Schematics Acquired . | . . . Parts Damaged . | . . . Bothacking | -11 -10 -10 ------------ Run | Yrd Mat Min Used RIF Installer . | . . . Robots Hacked . | . . . Non-combat . | . . . Combat . | . . . Robot Hacks Applied . | . . . Relay Couplers Released . | . . . Fabnet Peak Effective % . | . . . Robots Rewired . | . . . Allies Hacked . | . . . Hacks Repelled . | . . . Allies | -11 -10 -10 -------- Run | Yrd Mat Min Total Allies 1 | . . 1 Largest Group 1 | . . 1 Highest-Rated Group 31 | . . 31 Highest-Rated Ally 31 | . . 31 Total Orders . | . . . Ally Attacks 1 | . . 1 Total Damage 22 | . . 22 Kills 1 | . . 1 Allies Corrupted . | . . . Allies Melted . | . . . Intel | -11 -10 -10 ------- Run | Yrd Mat Min Active Infowar (turns) 540 | 18 421 101 Terrain 540 | 18 421 101 Robot Analysis Total . | . . . Derelict Logs Recovered . | . . . Drone Launches . | . . . Drone Recoveries . | . . . Exploration | -11 -10 -10 ------------- Run | Yrd Mat Min Turns Passed 657 | 113 421 123 Spaces Moved 249 | 54 171 24 Core 4 | 2 . 2 Treads 245 | 52 171 22 Legs . | . . . Wheels . | . . . Hover . | . . . Flight . | . . . Fastest Speed 50 | 50 160 240 Average Speed 231 | 155 240 332 Slowest Speed 750 | 160 320 750 Overloaded Moves . | . . . Propulsion Burnouts . | . . . Robots Hopped . | . . . Potential Cave-ins . | . . . Cave-ins Triggered . | . . . Exploration Rate (%) 12 | 4 22 11 Regions Visited 2 Branch Regions 1 Pre-discovered Areas 1 | . . 1 Known Exits Taken . | . . . Unknown Exits Taken 2 | 1 1 . Scrap Searched . | . . . Spaces Dug . | . . . Terrain Destroyed . | . . . Melee . | . . . Projectile . | . . . AOE . | . . . Terrain Rammed . | . . . Walls Destroyed . | . . . Machines Disabled . | . . . Actions | -11 -10 -10 --------- Run | Yrd Mat Min Total 301 | 70 181 50 Wait 13 | 1 3 9 Move 247 | 53 170 24 Hop . | . . . Pick Up 10 | 3 6 1 Fast Attach 7 | 7 . . Attach 2 | . . 2 Detach . | . . . Swap 2 | . 1 1 Drop . | . . . Fire 18 | 5 . 13 Melee . | . . . Ram . | . . . Kick . | . . . Crush 2 | 1 1 . Escape Stasis . | . . . Rewire . | . . . Trap . | . . . Miscellaneous . | . . . Route ------- -11/Scrapyard -10/Materials -10/Mines History --------- Turn | Location | Event 13 | -11/Scrapyard | Discovered new exit (range 14) 114 | -11/Scrapyard | Entered Materials 153 | -10/Materials | Discovered new exit (range 12) 315 | -10/Materials | Build established: Mutant 535 | -10/Materials | Entered Mines 540 | -10/Mines | Escorted by a lone wolf Derelict 560 | -10/Mines | Learned location of Storage (-9) 590 | -10/Mines | Assembled infested the area 645 | -10/Mines | Core integrity fell below 50% 649 | -10/Mines | Core integrity fell below 20% 658 | -10/Mines | Destroyed by D-53 Grenadier with Mini Grenade Launcher Last Messages --------------- 00640_ Switching to secondary target: as-30028. 00642_ as-30028 destroyed. 00642_ as-28357 destroyed. 00642_ as-84599 destroyed. 00642_ as-79419 destroyed. 00642_ as-84963 destroyed. 00643_ as-17875 destroyed. 00643_ as-81277 destroyed. 00645_ The unstable cave ceiling collapses. 00645_ Lgt. Assault Rifle destroyed. 00645_ as-43180 destroyed. 00647_ as-51414 destroyed. 00647_ Beamcaster destroyed. 00648_ The unstable cave ceiling collapses. 00649_ U-05 Engineer builds a Wall. 00650_ The unstable cave ceiling collapses. 00652_ as-12541 destroyed. 00652_ U-05 Engineer destroyed. 00654_ The unstable cave ceiling collapses. 00658_ as-62093 destroyed. Map ----- +----------------------------------------------------+ | ????????????????????????????????????????? | | ????????????????????????????????????????? | | ????????????????????????????????????????? | | ????????????????????????????????????????? | | ????????????????????????????????????????? | | ????????????????????????????????????????? | | ????????????????????????????????????????? | | ????????????????????????????????????????? | | ????????????????????????????????????????? | | ????????????????????????????????????????? | | ??????????????????? ????????????????? | | ??????????????????? ?????????????????? | | ????????????????? ???????????#?????? | | ???????????????? #????????????????? | | ??????????????## ??????????#?????? | | ??????????????? ???#?#??#???????? | | ??????????????## ????????????????? | | ??????????????# ##??????????????? | | ???????#??????# ##???????????#?#? | | ??????????????# #????####?????#? | | ???????#??#???## # #???## ##?????? | | ?????????????## d ##### #?#???? | | ?????????????# d ## #?????? | | ?????????#???# ## ####??? | | ??????????????# # # ##?? | | ????????#????????# @ #?# | | ???????????#?????# = #?? | | ?????????#???????# = * = #?? | | ??????????????#?## %#!# ## = [ #?? | | ?????????????#???### !%!| ##### * #?? | | ???????????????????####### #???## = #?? | | ????????????????#????????# #????## #?? | | ?????????????????????????? #?????## ##?? | | ?????????????????????????? ???????###??? | | ???????????????????? ???? ????????????# | | ???????????????????????? ? ???????????#? | | ????????????????? ?? ??? ???????????? | | ????????????? ??????????#?? ???????????? | | ??????????????????????????? ???????#???# | | ????????????????????????#??##???????????? | | ????????????????????????#??##???????????? | | ?????????????????????????????????#??????? | | ????????????????????????????????????????? | | ????????????????????????????????????????? | | ????????????????????????????????????????? | | ????????????????????????????????????????? | | ????????????????????????????????????????? | | ????????????????????????????????????????? | | ????????????????????????????????????????? | | ????????????????????????????????????????? | +----------------------------------------------------+ Best States ------------- Heat Dissipation 25 Energy Generation 10 Energy Capacity 125 Matter Stores 254 Matter Capacity 300 Sight Range 16 Terrain Scan Range 16 Terrain Scan Density 10 Evasion (%) 40 Recoil Reduction 2 Item Schematics ----------------- None Robot Schematics ------------------ None Fabricated ------------ Nothing Repaired ---------- Nothing Studied --------- None Alien Tech Used ----------------- None Achievements -------------- None Challenges ------------ None Game ------ Seed FluxPowerMegatreads Manual? 0 Play Time 00:08:00 Cumulative 10.1 hours Start 2025.11.21 @ 18:27:24 End 2025.11.21 @ 18:35:44 Sessions 1 Manual Loads 0 Difficulty Rogue Special Mode None Game No. 17 Rogue 17 Adventurer 0 Explorer 0 Win Type - Total 0 Types 0/0/0/0/0/0/0/0/0/0 Lore% 6 Gallery% 12 Achievement% 11 Wizard Run 0 Options --------- Layout 1 ASCII 0 Keyboard 1 Movement Numpad Keybinds 0 Fullscreen 1 Font 32/SmallcapsGlow Map View 50x35 Zoom Use 0% Tactical HUD 1 Map Filters NONE Filters NONE Steam 1 RUN: d0b2bc29-793d-4533-a9db-57f74b3cdd78